fUSD/lending_fUSD_20251118
["ID","MTS","AMOUNT","RATE_DAILY","PERIOD"]
[394370753,1763502631635,-999.99,0.00029772,2]
[394370755,1763502631645,-150.99,0.00029772,2]
[394370757,1763502631654,-150.99,0.00029772,2]
[394370759,1763502631664,-66.76529364,0.00029794,2]
[394370761,1763502631677,-1644.61896634,0.00029794,2]
[394370763,1763502631688,-5207.02539024,0.00029794,2]
[394370764,1763502631700,-5653.20305128,0.00029794,2]
[394370765,1763502631716,-835.19021143,0.00029794,2]
[394370766,1763502631727,-567.05475244,0.00029794,2]
[394370767,1763502631739,-668.57669998,0.00029794,2]
[394370768,1763502631751,-650.69,0.00029794,2]
[394370769,1763502631764,-1613.9502996,0.00029794,2]
[394370770,1763502631775,-4328.06566314,0.00029794,2]
[394370773,1763502631787,-872.66531044,0.00029794,2]
[394370774,1763502631799,-4674.0,0.00029794,2]
[394370775,1763502631810,-780.71527075,0.00029794,2]
[394370776,1763502631823,-2582.67577394,0.00029794,2]
[394370777,1763502631835,-515.71559737,0.00029794,2]
[394370778,1763502631847,-1811.79123987,0.00029794,2]
[394370779,1763502631859,-1650.0,0.00029794,2]
[394370784,1763502637340,-946.28,0.00029794,2]
[394370788,1763502637420,-6326.97591316,0.00029794,2]
[394370789,1763502637463,-718604.04056638,0.00029794,2]
[394370790,1763502637473,-550.0,0.00029892,2]
[394370791,1763502637482,-8073.21,0.00029893,2]
[394370792,1763502637491,-9999.99,0.00029893,2]
[394370793,1763502637501,-2779.21,0.00029894,2]
[394370794,1763502637510,-9999.99,0.00029894,2]
[394370795,1763502637519,-1169.95,0.00029894,2]
[394370796,1763502637529,-1536.36,0.00029894,2]
[394370797,1763502637538,-300.0,0.00029894,7]
[394370798,1763502637548,-150.0,0.00029997,2]
[394370799,1763502637557,-150.0,0.00030216,2]
[394370800,1763502637567,-150.0,0.00030216,2]
[394370801,1763502637576,-166.66,0.00030288,30]
[394370802,1763502637585,-2751.0,0.000303,120]
[394370803,1763502637594,-1824.22,0.0003055,2]
[394370804,1763502637603,-500.0,0.00030658,2]
[394370805,1763502637613,-505.18735022,0.000308,4]
[394370806,1763502637623,-505.18735022,0.00030801,4]
[394370807,1763502637632,-215.18188196,0.00030811,3]
[394370809,1763502637641,-166.66,0.00030888,30]
[394370811,1763502637651,-666.23,0.00030891,2]
[394370813,1763502637660,-666.23,0.00030891,2]
[394370815,1763502637670,-18126.7372319,0.00030897,2]
[394370817,1763502637680,-274.23,0.000309,14]
[394370819,1763502637689,-224250.969714,0.00030901,3]
[394370821,1763502637698,-94227.5825387,0.00030901,3]
[394370822,1763502637708,-666.23,0.00030901,2]
[394370823,1763502637717,-666.23,0.00030901,2]
[394370824,1763502637726,-666.23,0.00030901,2]
[394370825,1763502637735,-564046.604425,0.00030911,2]
[394370826,1763502637744,-20476.356117,0.00030911,2]
[394370827,1763502637754,-6977.4441147,0.00030911,2]
[394370828,1763502637763,-22844.2337457,0.00030911,2]
[394370829,1763502637773,-500.0,0.00030973,5]
[394370830,1763502637782,-500.0,0.00030973,5]
[394370831,1763502637791,-500.0,0.00030973,3]
[394370832,1763502637801,-212.15693207,0.00031009,2]
[394370833,1763502637811,-919.59239163,0.00031053,2]
[394370834,1763502637820,-187.49451506,0.00031053,2]
[394370835,1763502637830,-572.16733292,0.00031064,2]
[394370836,1763502637839,-160.26946119,0.00031073,2]
[394370837,1763502637849,-37375.161619,0.00031123,3]
[394370838,1763502637858,-31409.1941796,0.00031123,3]
[394370839,1763502637867,-647.47377472,0.00031133,2]
[394370840,1763502637877,-150.42,0.00031133,2]
[394370841,1763502637887,-150.42,0.00031133,2]
[394370842,1763502637899,-37375.161619,0.00031143,3]
[394370843,1763502637908,-345501.135975,0.00031143,3]
[394370844,1763502637917,-150.42,0.00031143,2]
[394370845,1763502637927,-150.42,0.00031143,2]
[394370846,1763502637937,-150.42,0.00031143,2]
[394370847,1763502637947,-258.426684,0.00031143,15]
[394370848,1763502637956,-151.0,0.00031143,31]
[394370849,1763502637966,-151.0,0.00031143,31]
[394370850,1763502637976,-151.0,0.00031143,31]
[394370851,1763502637986,-151.0,0.00031143,31]
[394370852,1763502637995,-187.304561,0.00031143,31]
[394370853,1763502638004,-161.26817,0.00031143,31]
[394370854,1763502638013,-151.0,0.00031143,31]
[394370855,1763502638022,-151.0,0.00031143,31]
[394370856,1763502638032,-151.0,0.00031143,31]
[394370857,1763502638041,-300.0,0.00031152,10]
[394370858,1763502638051,-151.0,0.00031153,7]
[394370859,1763502638060,-151.0,0.00031153,31]
[394370860,1763502638071,-151.0,0.00031153,31]
[394370861,1763502638081,-151.0,0.00031153,30]
[394370862,1763502638091,-151.0,0.00031153,30]
[394370863,1763502638102,-151.0,0.00031153,31]
[394370864,1763502638112,-151.0,0.00031153,31]
[394370865,1763502638121,-151.0,0.00031153,31]
[394370866,1763502638131,-151.0,0.00031153,31]
[394370867,1763502638141,-151.0,0.00031153,31]
[394370868,1763502638151,-1000.0,0.00031164,2]
[394370869,1763502638161,-24027.7626,0.00031164,2]
[394370870,1763502638170,-274.23,0.00031174,14]
[394370871,1763502638180,-157.01,0.000312,7]
[394370872,1763502638190,-500.0,0.00031244,2]
[394370873,1763502638199,-282.86113,0.00031245,2]
[394370874,1763502638209,-500.0,0.00031253,3]
[394370875,1763502638219,-207.61773213,0.00031264,2]
[394370876,1763502638228,-420.0,0.00031303,2]
[394370877,1763502638238,-274.24,0.00031448,14]
[394370878,1763502638248,-166.66,0.00031488,30]
[394370879,1763502638257,-485.62,0.00031697,2]
[394370880,1763502638267,-300.0,0.00031803,2]
[394370881,1763502638277,-1312.28041013,0.00032,2]
[394370882,1763502638287,-1000.0,0.00032085,2]
[394370883,1763502638297,-166.66,0.00032219,2]
[394370884,1763502638306,-201.42723711,0.00032456,30]
[394370885,1763502638316,-150.0,0.00032456,30]
[394370886,1763502638326,-150.0,0.00032456,30]
[394370887,1763502638335,-150.0,0.00032456,30]
[394370888,1763502638345,-150.0,0.00032456,30]
[394370889,1763502638356,-150.0,0.00032456,30]
[394370890,1763502638365,-150.59614754,0.00032456,30]
[394370891,1763502638375,-150.0,0.00032456,30]
[394370892,1763502638384,-150.60787825,0.00032456,30]
[394370893,1763502638393,-150.0,0.00032456,30]
[394370894,1763502638403,-150.0,0.00032456,14]
[394370895,1763502638413,-150.0,0.00032456,30]
[394370896,1763502638422,-500.0,0.00032456,30]
[394370897,1763502638432,-150.0,0.00032456,30]
[394370898,1763502638441,-150.0,0.00032456,30]
[394370899,1763502638451,-150.0,0.00032456,30]
[394370900,1763502638460,-150.0,0.00032456,30]
[394370901,1763502638469,-150.21338972,0.00032456,30]
[394370902,1763502638479,-150.0,0.00032456,30]
[394370903,1763502638489,-254.26253146,0.00032456,30]
[394370904,1763502638499,-150.0,0.00032456,30]
[394370905,1763502638508,-150.0,0.00032456,30]
[394370906,1763502638518,-150.0,0.00032456,30]
[394370907,1763502638527,-150.0,0.00032456,30]
[394370908,1763502638537,-150.57124475,0.00032456,30]
[394370909,1763502638546,-150.0,0.00032456,30]
[394370910,1763502638556,-150.0,0.00032456,30]
[394370911,1763502638566,-150.0,0.00032456,30]
[394370912,1763502638576,-150.0,0.00032456,30]
[394370913,1763502638585,-500.0,0.00032456,30]
[394370914,1763502638594,-150.0,0.00032456,30]
[394370915,1763502638604,-150.0,0.00032456,2]
[394370916,1763502638614,-500.0,0.00032456,30]
[394370917,1763502638623,-500.0,0.00032456,2]
[394370918,1763502638633,-150.0,0.00032456,30]
[394370919,1763502638643,-150.0,0.00032483,30]
[394370920,1763502638652,-150.0,0.00032483,30]
[394370921,1763502638661,-150.0,0.00032483,30]
[394370922,1763502638671,-150.0,0.00032483,30]
[394370923,1763502638680,-150.0,0.00032483,30]
[394370924,1763502638690,-150.0,0.00032483,30]
[394370925,1763502638699,-150.0,0.00032483,14]
[394370926,1763502638709,-500.0,0.00032483,30]
[394370927,1763502638719,-150.0,0.00032483,30]
[394370928,1763502638728,-150.0,0.00032483,30]
[394370929,1763502638737,-150.0,0.00032483,30]
[394370930,1763502638747,-150.0,0.00032483,30]
[394370931,1763502638756,-150.0,0.00032483,30]
[394370932,1763502638766,-150.0,0.00032483,30]
[394370933,1763502638775,-150.0,0.00032483,30]
[394370934,1763502638784,-150.0,0.00032483,30]
[394370935,1763502638793,-500.0,0.00032483,30]
[394370936,1763502638803,-150.0,0.00032483,2]
[394370937,1763502638813,-500.0,0.00032483,30]
[394370938,1763502638822,-500.0,0.00032483,2]
[394370939,1763502638832,-150.0,0.00032483,30]
[394370940,1763502638841,-200.0,0.00032511,30]
[394370941,1763502638851,-200.0,0.00032511,30]
[394370942,1763502638861,-200.0,0.00032511,30]
[394370943,1763502638872,-200.0,0.00032511,30]
[394370944,1763502638882,-150.0,0.00032511,30]
[394370945,1763502638893,-200.0,0.00032511,30]
[394370946,1763502638907,-200.0,0.00032511,14]
[394370947,1763502638917,-500.0,0.00032511,30]
[394370948,1763502638927,-150.0,0.00032511,30]
[394370949,1763502638939,-500.0,0.00032511,30]
[394370950,1763502638948,-280.79144782,0.00032511,2]
[394370951,1763502638959,-500.0,0.00032511,30]
[394370952,1763502638969,-500.0,0.00032511,2]
[394370953,1763502638979,-150.0,0.00032511,30]
[394370954,1763502638990,-205.17986171,0.00032538,30]
[394370955,1763502638999,-500.0,0.00032538,30]
[394370956,1763502639009,-200.0,0.00032538,30]
[394370957,1763502639019,-500.0,0.00032538,30]
[394370958,1763502639030,-500.0,0.00032538,30]
[394370959,1763502639039,-500.0,0.00032538,2]
[394370960,1763502639050,-150.0,0.00032538,30]
[394370961,1763502639059,-500.0,0.00032566,30]
[394370962,1763502639069,-500.0,0.00032566,30]
[394370963,1763502639078,-500.0,0.00032566,30]
[394370964,1763502639088,-500.0,0.00032566,2]
[394370965,1763502639098,-150.0,0.00032566,30]
[394370966,1763502639108,-438.42907413,0.00032593,30]
[394370967,1763502639117,-500.0,0.00032593,30]
[394370968,1763502639127,-500.0,0.00032593,30]
[394370969,1763502639137,-184.98085944,0.00032593,30]
[394370970,1763502639147,-500.0,0.0003262,30]
[394370971,1763502639156,-500.0,0.0003262,30]
[394370972,1763502639166,-485.62,0.00032629,2]
[394370973,1763502639175,-200.0,0.0003264,5]
[394370974,1763502639186,-572.16733287,0.00032819,2]
[394370975,1763502639196,-508.2246355,0.00033085,5]
[394370976,1763502639207,-638.02,0.00033165,2]
[394370977,1763502639217,-300.0,0.00033173,2]
[394370978,1763502639226,-225.81,0.00033211,2]
[394370979,1763502639236,-282.86113,0.00033245,2]
[394370980,1763502639246,-166.66,0.00033249,2]
[394370981,1763502639256,-200.0,0.00033325,5]
[394370982,1763502639266,-609.0,0.00033546,2]
[394370983,1763502639276,-575.0,0.00033546,2]
[394370984,1763502639285,-3432.0,0.00033546,2]
[394370985,1763502639295,-1318.0,0.00033546,2]
[394370986,1763502639305,-1599.0,0.00033546,2]
[394370987,1763502639315,-821.0,0.00033546,2]
[394370989,1763502639325,-793.0,0.00033546,2]
[394370990,1763502639336,-1276.0,0.00033546,2]
[394370991,1763502639346,-1604.0,0.00033546,2]
[394370992,1763502639355,-6632.129,0.00033546,2]
[394370993,1763502639365,-485.62,0.00033561,2]
[394370994,1763502639376,-191.73,0.00033658,2]
[394370995,1763502639385,-587.0,0.00033772,2]
[394370996,1763502639395,-153.0,0.00033907,2]
[394370997,1763502639404,-153.0,0.00033907,2]
[394370998,1763502639414,-153.0,0.00033908,2]
[394370999,1763502639424,-2128.0,0.00033949,5]
[394371000,1763502639433,-500.0,0.00034108,2]
[394371001,1763502639443,-588.453,0.00034227,38]
[394371002,1763502639453,-396.0,0.00034256,2]
[394371003,1763502639464,-166.66,0.00034278,2]
[394371004,1763502639473,-485.62,0.00034493,2]
[394371005,1763502639483,-572.16733287,0.00034574,2]
[394371006,1763502639493,-669.06,0.00034649,2]
[394371007,1763502639503,-150.42,0.00034816,2]
[394371008,1763502639513,-125855.8091765,0.00034826,2]
[394371009,1763502639523,-4568.8926196,0.00034826,2]
[394371010,1763502639533,-151.0,0.00034826,31]
[394371011,1763502639543,-151.0,0.00034826,30]
[394371012,1763502639552,-151.0,0.00034826,30]
[394371013,1763502639562,-150.0,0.00035088,4]
[394371014,1763502639572,-282.86113,0.00035245,2]
[394371015,1763502639581,-166.66,0.00035308,2]
[394371016,1763502639592,-485.62,0.00035426,2]
[394371017,1763502639603,-1000.0,0.0003565,2]
[394371018,1763502639613,-246.432274,0.00035699,31]
[394371019,1763502639623,-281.44887,0.00035699,31]
[394371020,1763502639632,-151.0,0.00035699,31]
[394371021,1763502639641,-151.0,0.00035699,31]
[394371022,1763502639651,-28082.2268571,0.00035699,2]
[394371023,1763502639660,-1019.4577419,0.00035699,2]
[394371024,1763502639670,-700.6,0.00035945,2]
[394371025,1763502639679,-700.6,0.00035945,2]
[394371026,1763502639688,-700.6,0.00035945,2]
[394371027,1763502639697,-699.12,0.00035945,2]
[394371028,1763502639707,-572.16733287,0.0003633,2]
[394371029,1763502639717,-166.66,0.00036337,2]
[394371030,1763502639727,-919.59239161,0.00036347,2]
[394371031,1763502639737,-187.49451504,0.00036347,2]
[394371032,1763502639746,-823.0,0.00036436,2]
[394371033,1763502639755,-1000.0,0.00036456,2]
[394371034,1763502639765,-575.0,0.00036546,2]
[394371035,1763502639775,-1635.894,0.00036546,2]
[394371036,1763502639784,-1599.0,0.00036546,2]
[394371037,1763502639793,-821.0,0.00036546,2]
[394371038,1763502639802,-1604.0,0.00036546,2]
[394371039,1763502639811,-6490.0,0.00036546,2]
[394371040,1763502639821,-225.81,0.00036636,2]
[394371041,1763502639830,-177.39,0.00036767,2]
[394371042,1763502639840,-416.71,0.00036767,2]
[394371043,1763502639849,-300.0,0.00036767,2]
[394371044,1763502639859,-150.0,0.00036767,2]
[394371045,1763502639869,-169.49,0.00036767,2]
[394371046,1763502639878,-150.0,0.00036767,2]
[394371047,1763502639888,-1209.53,0.00036767,2]
[394371048,1763502639903,-150.0,0.00036767,2]
[394371049,1763502639913,-169.49,0.00036767,2]
[394371050,1763502639922,-1209.53,0.00036767,2]
[394371051,1763502639932,-1209.53,0.00036767,2]
[394371052,1763502639942,-169.28,0.00036767,2]
[394371053,1763502639952,-150.0,0.00036767,2]
[394371054,1763502639962,-1209.53,0.00036767,2]
[394371055,1763502639972,-1209.53,0.00036767,2]
[394371056,1763502639982,-1209.53,0.00036767,2]
[394371057,1763502639993,-282.55,0.00036767,2]
[394371058,1763502640003,-2000.0,0.000368,2]
[394371059,1763502640013,-1072.0,0.00036919,2]
[394371060,1763502640022,-160.16,0.00036965,2]
[394371061,1763502640031,-1072.0,0.00037041,2]
[394371062,1763502640041,-717.0,0.00037173,2]
[394371063,1763502640050,-282.86113,0.00037245,2]
[394371064,1763502640060,-717.0,0.00037321,2]
[394371065,1763502640072,-718.0,0.00037331,7]
[394371066,1763502640082,-1588.87961101,0.00037345,2]
[394371067,1763502640091,-1556.8782227,0.00037437,2]
[394371068,1763502640249,-5097.2375341,0.00037437,2]
[394371069,1763502640259,-500.0,0.00037511,30]
[394371070,1763502640270,-153.0,0.00037524,7]
[394371071,1763502640279,-1245.0,0.00037524,7]
[394371072,1763502640290,-150.0,0.00037589,2]
[394371073,1763502640300,-354.78,0.00037589,2]
[394371074,1763502640309,-354.78,0.00037589,2]
[394371075,1763502640320,-198.0,0.00037589,2]
[394371076,1763502640330,-300.0,0.00037589,2]
[394371077,1763502640339,-150.0,0.00037589,2]
[394371078,1763502640349,-150.0,0.00037589,2]
[394371079,1763502640358,-150.0,0.00037589,2]
[394371080,1763502640368,-369.79,0.00037589,2]
[394371081,1763502640377,-416.87,0.00037589,2]
[394371082,1763502640388,-150.0,0.00037589,2]
[394371083,1763502640398,-150.0,0.00037589,2]
[394371084,1763502640408,-354.78,0.00037589,2]
[394371085,1763502640417,-169.49,0.00037589,2]
[394371086,1763502640427,-150.0,0.00037589,2]
[394371087,1763502640436,-416.87,0.00037589,2]
[394371088,1763502640446,-177.39,0.00037589,2]
[394371089,1763502640455,-169.49,0.00037589,2]
[394371090,1763502640465,-150.0,0.00037589,2]
[394371091,1763502640475,-150.0,0.00037589,2]
[394371092,1763502640485,-169.49,0.00037589,2]
[394371093,1763502640496,-177.39,0.00037589,2]
[394371094,1763502640506,-884.34,0.00037589,2]
[394371095,1763502640516,-150.0,0.00037589,2]
[394371096,1763502640526,-169.49,0.00037589,2]
[394371097,1763502640536,-150.0,0.00037589,2]
[394371098,1763502640546,-354.51,0.00037589,2]
[394371099,1763502640555,-177.39,0.00037589,2]
[394371100,1763502640565,-169.49,0.00037589,2]
[394371101,1763502640575,-150.0,0.00037589,2]
[394371102,1763502640584,-177.39,0.00037589,2]
[394371103,1763502640594,-338.84,0.00037589,2]
[394371105,1763502640603,-354.78,0.00037589,2]
[394371106,1763502640613,-717.0,0.00037719,2]
[394371107,1763502640622,-717.0,0.00037854,2]
[394371108,1763502640632,-150.0,0.00037947,2]
[394371109,1763502640642,-2383.93816793,0.00037947,2]
[394371110,1763502640651,-500.0,0.00037952,30]
[394371111,1763502640661,-572.16733287,0.00038085,2]
[394371112,1763502640670,-430.0,0.00038085,7]
[394371113,1763502640679,-430.0,0.0003825,120]
[394371114,1763502640688,-177.39,0.00038411,2]
[394371115,1763502640698,-177.39,0.00038411,2]
[394371116,1763502640708,-416.87,0.00038411,2]
[394371117,1763502640718,-150.42,0.0003849,2]
[394371118,1763502640727,-25210.16158762,0.000385,2]
[394371119,1763502640737,-271.27168457,0.000385,2]
[394371120,1763502640747,-275.06670187,0.000385,2]
[394371121,1763502640757,-717.0,0.00038591,2]
[394371122,1763502640767,-900.0,0.000387,2]
[394371123,1763502640776,-900.0,0.000387,2]
[394371124,1763502640786,-717.0,0.00038832,7]
[394371125,1763502640795,-347.3864871,0.00038893,2]
[394371126,1763502640804,-1137.3474273,0.00038893,2]
[394371127,1763502640814,-779.58627577,0.000389,2]
[394371128,1763502640823,-172.35675476,0.000389,2]
[394371129,1763502640832,-1859.92670822,0.000389,2]
[394371130,1763502640842,-190.61023959,0.000389,2]
[394371131,1763502640851,-1701.18249718,0.000389,2]
[394371132,1763502640861,-29561.0,0.00038959,120]
[394371133,1763502640870,-647.47377472,0.0003899,2]
[394371134,1763502640880,-150.42,0.0003899,2]
[394371135,1763502640889,-150.42,0.0003899,2]
[394371136,1763502640901,-150.42,0.0003899,2]
[394371137,1763502640912,-150.42,0.0003899,2]
[394371138,1763502640921,-150.42,0.0003899,2]
[394371139,1763502640931,-1229625.96856912,0.00039,2]
[394371140,1763502640941,-151.0,0.00039,120]
[394371141,1763502640950,-151.0,0.00039,30]
[394371142,1763502640960,-241.169584,0.00039,30]
[394371143,1763502640970,-151.0,0.00039,120]
[394371144,1763502640980,-151.0,0.00039,120]
[394371145,1763502640989,-717.0,0.00039033,7]
[394371146,1763502640999,-150.0,0.00039062,7]
[394371147,1763502641008,-212.605,0.00039062,7]
[394371148,1763502641018,-1000.0,0.00039111,7]
[394371149,1763502641027,-717.0,0.00039127,2]
[394371150,1763502641036,-1000.0,0.00039141,7]
[394371151,1763502641046,-2869.93,0.00039169,2]
[394371152,1763502641056,-1000.0,0.0003918,7]
[394371153,1763502641066,-1000.0,0.00039185,7]
[394371154,1763502641076,-1000.0,0.00039206,7]
[394371155,1763502641086,-1000.0,0.00039215,2]
[394371156,1763502641095,-282.86113,0.00039245,2]
[394371157,1763502641105,-1152.0,0.0003931,5]
[394371158,1763502641116,-150.42,0.00039371,2]
[394371159,1763502641127,-588.971763,0.00039387,2]
[394371160,1763502641137,-157.0,0.000394,14]
[394371161,1763502641147,-1000.0,0.00039527,7]
[394371162,1763502641157,-575.0,0.00039546,2]
[394371163,1763502641167,-1599.0,0.00039546,2]
[394371164,1763502641177,-1604.0,0.00039546,2]
[394371165,1763502641187,-1000.0,0.00039601,7]
[394371166,1763502641196,-212.36800079,0.00039616,30]
[394371167,1763502641207,-212.36800079,0.00039616,30]
[394371168,1763502641216,-152.0,0.00039639,3]
[394371169,1763502641226,-1000.0,0.00039642,7]
[394371170,1763502641236,-638.02,0.00039654,2]
[394371171,1763502641245,-717.0,0.00039663,7]
[394371172,1763502641255,-718.0,0.00039674,2]
[394371173,1763502641265,-996.74878047,0.00039683,7]
[394371174,1763502641274,-1000.0,0.00039723,7]
[394371175,1763502641284,-718.0,0.00039734,120]
[394371176,1763502641293,-212.36800079,0.00039781,30]
[394371177,1763502641303,-212.36800079,0.00039781,30]
[394371178,1763502641312,-333.87619262,0.000398,2]
[394371179,1763502641323,-500.0,0.00039827,30]
[394371180,1763502641334,-572.16733287,0.0003984,2]
[394371181,1763502641344,-430.0,0.0003989,2]
[394371182,1763502641354,-212.36800079,0.00039918,30]
[394371183,1763502641363,-212.36800079,0.00039918,30]
[394371184,1763502641373,-1000.0,0.00039943,7]
[394371185,1763502641383,-151.0,0.00039943,30]
[394371186,1763502641392,-1000.0,0.00039944,7]
[394371187,1763502641402,-1000.0,0.00039957,7]
[394371188,1763502641411,-5000.74125896,0.0004,10]
[394371189,1763502641421,-500.0,0.0004,7]
[394371190,1763502641430,-18000.0,0.0004,3]
[394371191,1763502641440,-1000.0,0.00040045,7]
[394371192,1763502641449,-550.22,0.00040055,2]
[394371193,1763502641458,-229.38,0.00040055,2]
[394371194,1763502641468,-150.0,0.00040055,2]
[394371195,1763502641478,-150.0,0.00040055,2]
[394371196,1763502641487,-225.81,0.0004006,2]
[394371197,1763502641497,-1000.0,0.00040067,7]
[394371198,1763502641507,-1000.0,0.00040071,7]
[394371199,1763502641516,-212.36800079,0.00040082,30]
[394371200,1763502641525,-212.36800079,0.00040082,30]
[394371201,1763502641534,-1000.0,0.00040105,7]
[394371202,1763502641544,-1000.0,0.00040118,7]
[394371203,1763502641554,-1000.0,0.0004014,7]
[394371204,1763502641565,-500.0,0.00040161,30]
[394371205,1763502641574,-1000.0,0.00040167,7]
[394371206,1763502641584,-151.0,0.00040167,120]
[394371207,1763502641594,-276.441204,0.00040167,120]
[394371208,1763502641603,-1000.0,0.00040176,7]
[394371209,1763502641613,-1000.0,0.00040219,7]
[394371210,1763502641622,-1000.0,0.0004023,7]
[394371211,1763502641631,-212.36800079,0.00040247,30]
[394371212,1763502641641,-212.36800079,0.00040247,30]
[394371213,1763502641651,-1859.92670822,0.00040271,2]
[394371214,1763502641660,-190.61023959,0.00040271,2]
[394371215,1763502641670,-1701.18249716,0.00040271,2]
[394371216,1763502641680,-1000.0,0.00040272,7]
[394371217,1763502641689,-1000.0,0.00040296,7]
[394371218,1763502641698,-1000.0,0.0004031,7]
[394371219,1763502641707,-1000.0,0.0004032,7]
[394371220,1763502641717,-718.0,0.00040342,2]
[394371221,1763502641726,-191.73,0.00040389,2]
[394371222,1763502641735,-212.36800079,0.00040411,30]
[394371223,1763502641745,-212.36800079,0.00040411,30]
[394371224,1763502641754,-1000.0,0.00040415,7]
[394371225,1763502641764,-150.0,0.00040439,7]
[394371226,1763502641773,-1000.0,0.0004047,7]
[394371227,1763502641783,-151.83340457,0.00040498,7]
[394371228,1763502641792,-2000.0,0.000405,2]
[394371229,1763502641801,-1000.0,0.00040523,7]
[394371230,1763502641811,-500.0,0.00040541,120]
[394371231,1763502641820,-2000.0,0.00040541,120]
[394371232,1763502641830,-150.42,0.00040545,2]
[394371233,1763502641839,-246.17656721,0.00040555,7]
[394371234,1763502641849,-717.0,0.00040575,2]
[394371235,1763502641858,-212.36800079,0.00040575,30]
[394371236,1763502641867,-212.36800079,0.00040575,30]
[394371237,1763502641877,-1000.0,0.0004059,7]
[394371238,1763502641886,-717.0,0.00040606,2]
[394371239,1763502641896,-1000.0,0.00040649,7]
[394371240,1763502641909,-1000.0,0.00040671,7]
[394371241,1763502641918,-500.0,0.0004069,30]
[394371242,1763502641928,-430.0,0.0004069,2]
[394371243,1763502641937,-1000.0,0.00040699,7]
[394371244,1763502641947,-212.36800079,0.00040712,30]
[394371245,1763502641956,-212.36800079,0.00040712,30]
[394371246,1763502641965,-300.0,0.00040726,2]
[394371247,1763502641975,-283.92391288,0.00040741,13]
[394371248,1763502641985,-283.92391277,0.00040741,13]
[394371249,1763502641995,-283.92391277,0.00040741,13]
[394371250,1763502642004,-283.92391277,0.00040741,13]
[394371251,1763502642014,-283.92391277,0.00040741,13]
[394371252,1763502642024,-283.92391277,0.00040741,13]
[394371253,1763502642033,-283.92391277,0.00040741,13]
[394371254,1763502642043,-283.92391277,0.00040741,13]
[394371255,1763502642052,-283.92391277,0.00040741,13]
[394371256,1763502642063,-283.92391277,0.00040741,13]
[394371257,1763502642073,-283.92391277,0.00040741,13]
[394371258,1763502642082,-283.92391277,0.00040741,13]
[394371259,1763502642092,-283.92391277,0.00040741,13]
[394371260,1763502642101,-1000.0,0.00040745,7]
[394371261,1763502642111,-150.0,0.00040777,7]
[394371262,1763502642121,-717.0,0.00040788,7]
[394371263,1763502642130,-1000.0,0.00040841,7]
[394371264,1763502642140,-434.0,0.00040843,2]
[394371265,1763502642149,-1000.0,0.00040847,7]
[394371266,1763502642159,-300.0,0.00040855,2]
[394371267,1763502642168,-717.0,0.00040857,2]
[394371268,1763502642178,-1000.0,0.00040867,7]
[394371269,1763502642187,-283.92391277,0.00040867,13]
[394371270,1763502642197,-212.36800079,0.00040877,30]
[394371271,1763502642206,-212.36800079,0.00040877,30]
[394371272,1763502642215,-1000.0,0.00040886,7]
[394371274,1763502642224,-717.0,0.00040902,7]
[394371275,1763502642233,-1000.0,0.00040945,7]
[394371276,1763502642242,-300.0,0.00040973,2]